bitfinex/quotes_SOLUSD_20240628
["timestamp","ask_amount","ask_price","bid_price","bid_amount"]
[1719583323130,17.3543,144.06,143.98,1.38873881]
[1719583323446,6.9443,144.01,143.99,1.38874407]
[1719583323761,20.95,144.04,143.99,1.38874407]
[1719583324051,6.9426,144.04,143.99,1.38874407]
[1719583324350,53.9198,144.1,143.99,8.33354407]
[1719583324550,6.9425,144.04,143.99,1.38874407]
[1719583324738,6.9431,144.03,143.99,1.38874407]
[1719583324939,6.9431,144.03,143.97,25.52034163]
[1719583325241,6.9441,144.01,143.97,1.21034163]
[1719583325450,6.9441,144.01,143.98,1.38878533]
[1719583325618,20.95,144.03,143.98,1.38878533]
[1719583325824,6.9435,144.02,143.99,1.38871004]
[1719583326043,6.9435,144.02,143.97,1.21034163]
[1719583326044,20.95,144.06,143.97,18.57464163]
[1719583326252,6.9426,144.04,143.98,1.3885644]
[1719583326441,6.9421,144.05,143.99,8.33339166]
[1719583326647,17.3534,144.07,143.99,1.38849166]
[1719583326648,6.9426,144.04,143.99,1.38849166]
[1719583326952,6.944,144.01,143.97,1.21034163]
[1719583327143,17.3534,144.07,143.99,1.3885628]
[1719583327338,6.9431,144.03,143.99,1.3885628]
[1719583327541,6.9426,144.04,143.99,1.3885628]
[1719583328444,6.943,144.03,143.99,1.3885628]
[1719583328858,6.9449,143.99,143.95,22.7554]
[1719583329037,20.95,143.98,143.87,382.8]
[1719583329245,20.95,144.0,143.92,40.1208]
[1719583329446,20.95,143.99,143.92,64.4386]
[1719583329626,6.9461,143.97,143.92,57.4908]
[1719583330033,6.945,143.99,143.93,8.33676606]
[1719583330370,17.3556,144.05,143.93,1.38916606]
[1719583330655,34.7034,144.08,143.98,6.9452]
[1719583330656,6.9431,144.03,143.98,6.9452]
[1719583330860,17.3543,144.06,143.96,17.3653]
[1719583331061,6.945,143.99,143.93,24.3163]
[1719583331430,6.9445,144.0,143.93,17.3688]
[1719583331626,20.95,144.03,143.95,6.9465]
[1719583331933,40.95,144.02,143.96,25.70065288]
[1719583332144,6.9448,144.0,143.95,6.9467]
[1719583332347,20.95,144.01,143.95,6.9467]
[1719583332348,27.8941,144.01,143.95,6.9467]
[1719583333146,27.8941,144.01,143.96,6.9463]
[1719583333147,6.9441,144.01,143.96,6.9463]
[1719583333342,20.95,143.99,143.92,22.7554]
[1719583333553,37.3595,144.02,143.92,40.1255]
[1719583333861,6.9452,143.99,143.93,6.9477]
[1719583334443,27.8954,143.98,143.93,6.9477]
[1719583334749,6.9461,143.97,143.92,40.1255]
[1719583335059,6.9455,143.98,143.92,47.0734]
[1719583335366,6.945,143.99,143.93,8.33688275]
[1719583335534,6.9429,144.04,143.98,6.9452]
[1719583335738,6.9438,144.02,143.96,24.3111]
[1719583335936,17.3541,144.06,143.97,6.9457]
[1719583335937,6.943,144.03,143.97,6.9457]
[1719583336232,20.95,144.05,143.92,22.7554]
[1719583336552,6.9454,143.98,143.93,24.3166]
[1719583336742,6.945,143.99,143.93,24.3165]
[1719583337063,6.9454,143.98,143.93,24.3165]
[1719583337438,27.8951,143.99,143.93,24.3165]
[1719583337635,20.0,144.04,143.95,6.9467]
[1719583337841,20.0,144.04,143.96,1.38894802]
[1719583338065,6.9433,144.03,143.97,6.9455]
[1719583338363,6.9433,144.03,143.98,8.33409824]
[1719583338568,40.95,144.04,143.96,6.9459]
[1719583338569,20.95,144.02,143.96,6.9459]
[1719583339061,20.0,144.04,143.98,6.9453]
[1719583339062,6.9431,144.03,143.98,6.9453]
[1719583339267,6.9431,144.03,143.99,1.38861025]
[1719583339562,6.9431,144.03,143.96,17.3657]
[1719583339563,6.9439,144.01,143.96,24.312]
[1719583339856,20.0,144.04,143.97,1.3888893]
[1719583340064,17.3535,144.07,143.92,122.7554]
[1719583340289,6.9426,144.04,143.98,6.9452]
[1719583340463,20.0,144.08,143.92,122.7554]
[1719583340464,20.95,144.05,143.92,122.7554]
[1719583340639,12.46876481,144.18,144.01,21.7191]
[1719583340839,6.5282,144.2,144.02,100.0]
[1719583341053,6.5282,144.2,144.01,21.7191]
[1719583341264,17.3472,144.12,144.02,6.943]
[1719583341435,17.3472,144.12,144.01,6.0378]
[1719583341436,6.9426,144.04,144.01,6.0378]
[1719583341639,17.3501,144.1,144.01,6.0378]
[1719583341836,6.9411,144.07,144.01,12.9817]
[1719583342236,6.9411,144.07,144.01,12.9816]
[1719583342450,20.95,144.05,143.97,21.9637]
[1719583342653,20.95,144.03,143.93,53.5621]
[1719583342866,27.8936,144.02,143.96,6.9462]
[1719583343165,20.95,144.02,143.95,17.3661]
[1719583343340,20.95,144.02,143.97,6.9456]
[1719583343776,27.8926,144.04,143.98,8.33365752]
[1719583344061,6.9425,144.04,143.98,6.945]
[1719583344276,6.9425,144.04,143.97,17.3641]
[1719583344577,6.942,144.05,144.0,6.9443]
[1719583344866,27.892,144.05,144.0,8.33271089]
[1719583345057,23.6789,144.11,144.01,25.10797555]
[1719583345262,6.9401,144.09,144.04,6.9421]
[1719583345449,6.9403,144.09,144.03,17.3565]
[1719583345646,6.9402,144.09,144.03,17.3565]
[1719583345968,20.95,144.09,144.02,6.9431]
[1719583346174,6.9394,144.11,144.01,6.36]
[1719583346473,6.9406,144.08,144.03,6.9429]
[1719583346990,6.9399,144.1,144.04,6.9424]
[1719583347269,6.9403,144.09,144.03,17.3568]
[1719583347484,6.9404,144.09,144.04,6.9423]
[1719583347646,6.9397,144.1,144.04,6.9423]
[1719583347844,17.3447,144.14,144.05,8.32965667]
[1719583347845,6.9394,144.11,144.05,8.32965667]
[1719583348164,27.8894,144.11,144.05,6.9416]
[1719583348359,27.8897,144.1,144.04,6.9424]
[1719583348548,20.95,144.1,144.05,6.9418]
[1719583348867,27.8906,144.08,144.03,17.3568]
[1719583349078,20.95,144.08,144.03,24.2993]
[1719583349262,6.9405,144.09,144.04,6.9424]
[1719583349569,6.9396,144.1,144.04,6.9424]
[1719583349944,27.8896,144.1,144.04,6.9424]
[1719583350356,27.8896,144.1,144.05,6.9418]
[1719583350762,6.9394,144.11,144.05,17.354]
[1719583350976,20.95,144.1,144.05,24.2959]
[1719583351381,6.9387,144.12,144.05,17.354]
[1719583351593,31.62405417,144.15,144.07,17.3518]
[1719583351594,8.07985417,144.15,144.07,17.3518]
[1719583351876,6.9386,144.13,144.07,17.3518]
[1719583352081,20.95,144.13,144.08,6.9402]
[1719583352278,20.95,144.13,144.07,17.3518]
[1719583352279,20.95,144.11,144.04,17.3554]
[1719583352447,6.9385,144.13,144.01,106.36]
[1719583352652,8.07985417,144.15,144.09,6.9399]
[1719583352886,15.01735417,144.15,144.09,6.9399]
[1719583353049,20.95,144.14,144.09,6.9399]
[1719583353252,27.8877,144.14,144.09,6.9399]
[1719583353783,8.07985417,144.15,144.08,24.2915]
[1719583354082,20.95,144.13,144.08,24.2915]
[1719583354273,27.8884,144.13,144.08,17.351]
[1719583354855,27.8884,144.13,144.08,24.2913]
[1719583355070,27.8877,144.14,144.08,17.351]
[1719583355651,27.8877,144.14,144.09,21.4838]
[1719583355868,8.07985417,144.15,144.11,6.939]
[1719583356178,8.07985417,144.15,144.11,6.9391]
[1719583356888,8.07985417,144.15,144.1,24.2875]
[1719583357183,8.07985417,144.15,144.12,17.3459]
[1719583357479,0.8191655,144.15,144.13,6.938]
[1719583357659,0.8191655,144.15,144.14,6.9376]
[1719583358681,0.8191655,144.15,144.13,6.9378]
[1719583358855,0.8191655,144.15,144.13,6.938]
[1719583359059,0.8191655,144.15,144.12,24.2841]
[1719583359479,0.8191655,144.15,144.13,1.38726794]
[1719583359675,0.8191655,144.15,144.14,6.9376]
[1719583359868,7.2570527,144.19,144.13,1.38726794]
[1719583360177,7.2570527,144.19,144.16,17.3415]
[1719583360385,7.2570527,144.19,144.18,6.9357]
[1719583360592,7.2570527,144.19,144.16,17.3415]
[1719583360774,7.2570527,144.19,144.16,24.2781]
[1719583361157,7.2570527,144.19,144.13,17.3446]
[1719583361362,7.2570527,144.19,144.09,21.4838]
[1719583361564,7.2570527,144.19,144.17,17.3398]
[1719583361762,7.2570527,144.19,144.09,21.4838]
[1719583361960,6.9372,144.15,144.1,24.2877]
[1719583362159,6.9363,144.17,144.12,6.9386]
[1719583362681,7.2570527,144.19,144.14,24.281]
[1719583363078,7.2570527,144.19,144.14,24.2811]
[1719583363388,28.2070527,144.19,144.14,24.2811]
[1719583363563,20.95,144.16,144.09,21.4838]
[1719583363757,7.2570527,144.19,144.12,6.9386]
[1719583363962,6.9357,144.18,144.13,8.28403403]
[1719583364182,6.9357,144.18,144.13,1.34593403]
[1719583364372,6.9364,144.17,144.09,21.4838]
[1719583364575,6.9359,144.18,144.13,6.9381]
[1719583364778,7.2570527,144.19,144.13,6.9381]
[1719583364979,7.2570527,144.19,144.13,8.32535493]
[1719583365167,7.2570527,144.19,144.13,17.3448]
[1719583365369,7.2570527,144.19,144.16,6.9366]
[1719583365572,6.934,144.22,144.16,6.9366]
[1719583365883,7.25544281,144.23,144.18,6.9356]
[1719583366105,7.25544281,144.23,144.14,17.3433]
[1719583366273,20.95,144.22,144.14,17.3433]
[1719583366477,20.95,144.22,144.09,21.4838]
[1719583366669,38.285,144.22,144.11,24.286]
[1719583366870,6.9368,144.16,144.11,17.347]
[1719583367065,20.95,144.14,144.09,12.9836]
[1719583367268,20.95,144.14,144.09,6.0436]
[1719583367488,20.95,144.17,144.1,17.3484]
[1719583367706,6.0861,144.2,144.09,6.0436]
[1719583367995,6.9365,144.17,144.12,17.3458]
[1719583368181,6.9367,144.16,144.12,17.3458]
[1719583368501,27.8867,144.16,144.11,6.939]
[1719583368873,20.95,144.16,144.11,6.939]
[1719583369071,20.95,144.13,144.08,17.996526]
[1719583369274,6.9394,144.11,144.08,1.689426]
[1719583369572,27.8892,144.11,144.08,1.689426]
[1719583369805,20.95,144.11,144.08,1.689426]
[1719583369971,27.8892,144.11,144.08,1.689426]
[1719583370586,20.95,144.09,144.08,1.689426]
[1719583370786,27.8901,144.09,144.08,1.689426]
[1719583372488,47.8901,144.09,144.08,1.689426]
[1719583375288,6.9401,144.09,144.08,1.689426]
[1719583375596,27.8901,144.09,144.08,1.689426]
[1719583375805,6.9397,144.1,144.08,1.689426]
[1719583376010,6.94,144.1,144.08,1.689426]
[1719583376793,6.9392,144.11,144.08,1.689426]
[1719583377000,77.238,144.17,144.08,1.689426]
[1719583377195,6.9391,144.11,144.08,1.689426]
[1719583377383,20.95,144.14,144.08,1.689426]
[1719583378005,20.95,144.1,144.08,1.689426]
[1719583378302,6.9393,144.11,144.08,1.689426]
[1719583378501,17.3423,144.16,144.08,1.689426]
[1719583378794,20.0,144.15,144.08,1.689426]
[1719583378980,20.0,144.15,144.08,8.629526]
[1719583379291,17.3446,144.14,144.08,1.689426]
[1719583379501,20.95,144.12,144.08,1.689426]
[1719583379701,20.95,144.1,144.08,1.689426]
[1719583379997,6.9393,144.11,144.08,1.689426]
[1719583380306,20.0,144.13,144.08,1.689426]
[1719583380485,6.9388,144.12,144.08,1.689426]
[1719583380683,47.8883,144.13,144.08,8.629926]
[1719583381005,6.938,144.14,144.09,8.32774715]
[1719583381207,6.9373,144.15,144.09,18.73764715]
[1719583381393,27.8871,144.16,144.09,17.3499]
[1719583381698,6.9378,144.14,144.09,17.3499]
[1719583381903,17.3397,144.18,144.09,17.3499]
[1719583382098,6.9373,144.15,144.09,17.3499]
[1719583382275,6.9383,144.13,144.08,8.629826]
[1719583382475,17.3397,144.18,144.08,1.689426]
[1719583382476,27.8874,144.15,144.08,1.689426]
[1719583382790,27.8874,144.15,144.1,6.9395]
[1719583383296,20.95,144.14,144.08,1.689426]
[1719583383504,20.95,144.19,144.08,1.689426]
[1719583383682,20.95,144.17,144.11,6.9387]
[1719583383877,20.95,144.17,144.13,6.938]
[1719583384585,20.95,144.19,144.14,6.9374]
[1719583384776,7.25804888,144.22,144.15,8.32403519]
[1719583384976,6.9348,144.2,144.14,6.5701]
[1719583385202,6.9353,144.19,144.14,6.5701]
[1719583385578,6.9361,144.18,144.14,6.5701]
[1719583385899,27.8854,144.19,144.14,6.5701]
[1719583386085,6.936,144.18,144.14,6.5701]
[1719583386284,6.9377,144.14,144.1,6.1894]
[1719583386599,27.8854,144.19,144.13,6.9378]
[1719583387104,6.9354,144.19,144.14,6.9374]
[1719583387402,6.9354,144.19,144.13,24.2825]
[1719583387599,6.9354,144.19,144.14,6.9376]
[1719583387804,27.8847,144.21,144.15,17.3426]
[1719583388099,6.9348,144.2,144.15,24.2796]
[1719583388508,7.25804888,144.22,144.15,24.2796]
[1719583388509,6.9344,144.21,144.16,6.9367]
[1719583388803,14.19194888,144.22,144.17,6.9361]
[1719583389017,20.95,144.22,144.14,6.9372]
[1719583389313,20.95,144.22,144.1,106.1894]
[1719583389314,6.9343,144.21,144.1,106.1894]
[1719583389485,27.884,144.22,144.16,6.9363]
[1719583389879,20.95,144.23,144.17,6.9362]
[1719583390081,6.9341,144.22,144.17,6.9362]
[1719583390386,6.9349,144.2,144.15,6.937]
[1719583390582,20.95,144.21,144.15,6.937]
[1719583390583,27.8844,144.21,144.15,6.937]
[1719583390809,27.8838,144.22,144.14,17.3438]
[1719583391001,6.9345,144.21,144.16,6.9366]
[1719583391198,6.934,144.22,144.16,6.9366]
[1719583391583,6.9343,144.21,144.16,6.9366]
[1719583391783,17.3305,144.26,144.17,6.9362]
[1719583391987,40.95,144.25,144.17,6.9362]
[1719583392182,38.2849,144.22,144.13,17.3447]
[1719583392393,20.95,144.22,144.13,17.3447]
[1719583392592,20.95,144.22,144.15,17.3425]
[1719583392855,6.9344,144.21,144.16,6.9362]
[1719583393184,6.934,144.22,144.17,6.9361]
[1719583393398,27.884,144.22,144.16,6.9366]
[1719583393599,6.9344,144.21,144.16,6.9366]
[1719583393904,27.8839,144.22,144.17,6.9362]
[1719583394102,6.9339,144.22,144.15,17.3425]
[1719583394410,20.95,144.24,144.17,17.34]
[1719583394610,20.95,144.24,144.1,6.1894]
[1719583394611,20.95,144.22,144.14,17.3433]
[1719583394800,20.95,144.21,144.14,24.2806]
[1719583394986,6.9351,144.2,144.15,6.9371]
[1719583395181,6.9353,144.19,144.14,24.2808]
[1719583395386,20.95,144.2,144.1,6.1894]
[1719583395680,29.97,144.21,144.1,6.1894]
[1719583395885,36.9046,144.21,144.15,24.2792]
[1719583396613,29.97,144.21,144.17,6.9362]
[1719583396987,29.97,144.21,144.16,6.9365]
[1719583397186,36.9045,144.21,144.16,6.9365]
[1719583397789,29.97,144.21,144.17,17.3402]
[1719583397989,29.97,144.21,144.2,6.9348]
[1719583400112,29.97,144.21,144.2,30.99034343]
[1719583400610,21.03983203,144.21,144.2,30.99034343]
[1719583400787,21.03983203,144.21,144.2,29.6037]
[1719583400990,21.03983203,144.21,144.2,30.99031576]
[1719583401306,21.03983203,144.21,144.2,29.6037]
[1719583402409,21.03983203,144.21,144.19,17.3378]
[1719583402590,21.03983203,144.21,144.2,6.9348]
[1719583403092,21.03983203,144.21,144.19,17.3378]
[1719583403294,21.03983203,144.21,144.2,6.9348]
[1719583404594,21.03983203,144.21,144.16,39.9387]
[1719583404790,41.88983203,144.21,144.13,17.3445]
[1719583405097,41.88983203,144.21,144.12,6.5858]
[1719583405098,20.85,144.18,144.12,13.524]
[1719583405306,21.03983203,144.21,144.11,15.324]
[1719583405307,20.85,144.16,144.11,15.324]
[1719583405489,20.85,144.16,144.12,21.039832]
[1719583405685,20.85,144.15,144.12,21.039832]
[1719583405919,20.85,144.15,144.08,7.947826]
[1719583406292,27.7873,144.15,144.09,17.3498]
[1719583406506,20.85,144.15,144.09,17.3498]
[1719583406699,20.85,144.18,144.09,17.3498]
[1719583406913,17.3387,144.19,144.09,17.3498]
[1719583406914,27.7873,144.15,144.09,24.2895]
[1719583407509,20.85,144.15,144.1,6.9392]
[1719583407720,20.85,144.15,144.1,8.32680934]
[1719583407892,6.9368,144.16,144.08,8.629826]
[1719583407893,20.85,144.16,144.08,8.629826]
[1719583408102,6.9395,144.11,144.08,1.689426]
[1719583408307,20.85,144.11,144.08,1.689426]
[1719583408492,27.7892,144.11,144.08,1.689426]
[1719583409407,27.7887,144.12,144.08,1.689426]
[1719583409610,20.85,144.09,144.08,1.689426]
[1719583409813,20.85,144.1,144.08,1.689426]
[1719583410011,6.9401,144.09,144.08,1.689426]
[1719583410194,21.9985,144.15,144.08,1.689426]
[1719583410394,6.9388,144.12,144.08,1.689426]
[1719583410816,27.7887,144.12,144.08,1.689426]
[1719583411314,6.9383,144.13,144.08,1.689426]
[1719583411914,27.7883,144.13,144.08,1.689426]
[1719583412307,20.85,144.12,144.08,1.689426]
[1719583412504,6.9401,144.09,144.08,1.689426]
[1719583412916,27.7901,144.09,144.08,1.689426]
[1719583413094,47.7901,144.09,144.08,1.689426]
[1719583413497,21.9985,144.15,144.08,1.689426]
[1719583413697,47.7881,144.14,144.08,25.980526]
[1719583413900,6.9384,144.13,144.09,1.38767057]
[1719583414101,21.03983203,144.21,144.09,6.3535]
[1719583414301,21.03983203,144.21,144.11,24.2863]
[1719583414515,6.9353,144.19,144.13,6.9381]
[1719583414695,20.85,144.2,144.14,1.38717651]
[1719583414899,6.9357,144.18,144.14,1.38717651]
[1719583415123,27.7853,144.19,144.15,1.38719409]
[1719583415355,6.9348,144.2,144.15,1.38719409]
[1719583415511,27.97413203,144.21,144.15,1.38719409]
[1719583415710,20.85,144.2,144.15,1.38719409]
[1719583415918,27.7848,144.2,144.15,1.38719409]
[1719583416116,6.9353,144.19,144.15,1.38719409]
[1719583416314,21.03983203,144.21,144.11,6.9387]
[1719583416315,20.85,144.18,144.11,6.9387]
[1719583416631,20.85,144.18,144.1,17.3481]
[1719583416632,6.9366,144.17,144.1,17.3481]
[1719583417015,27.7858,144.18,144.11,6.9391]
[1719583417331,27.7852,144.2,144.12,18.73281741]
[1719583417524,27.7852,144.2,144.14,6.9376]
[1719583417708,21.03983203,144.21,144.15,8.32411093]
[1719583417908,21.03983203,144.21,144.14,17.3434]
[1719583418119,21.03983203,144.21,144.11,17.3476]
[1719583418324,20.85,144.2,144.11,17.3476]
[1719583418620,6.9358,144.18,144.12,6.9382]
[1719583418834,6.9358,144.18,144.13,6.9381]
[1719583419148,27.7852,144.2,144.13,6.9381]
[1719583419309,41.88983203,144.21,144.13,17.3443]
[1719583419503,41.88983203,144.21,144.15,6.9371]
[1719583419740,41.88983203,144.21,144.13,17.3443]
[1719583419741,6.9357,144.18,144.13,24.2824]
[1719583420114,6.9368,144.16,144.11,6.9386]
[1719583420313,6.9368,144.16,144.1,17.3484]
[1719583420314,27.7849,144.2,144.14,6.9374]
[1719583420518,27.7849,144.2,144.12,17.3458]
[1719583420519,6.9353,144.19,144.13,6.938]
[1719583421130,27.7849,144.2,144.14,6.9374]
[1719583422022,21.03983203,144.21,144.15,8.32415806]
[1719583422223,27.97433203,144.21,144.15,8.32415806]
[1719583422617,48.82433203,144.21,144.15,6.937]
[1719583422814,48.82433203,144.21,144.14,17.343]
[1719583422815,20.85,144.2,144.14,17.343]
[1719583423147,27.7852,144.2,144.13,6.938]
[1719583423442,21.03983203,144.21,144.14,1.38715994]
[1719583423610,21.03983203,144.21,144.17,6.9361]
[1719583423807,21.03983203,144.21,144.18,1.38687565]
[1719583424010,27.97423203,144.21,144.16,6.9367]
[1719583424246,21.03983203,144.21,144.14,6.9372]
[1719583424419,41.88983203,144.21,144.13,6.9381]
[1719583424618,41.88983203,144.21,144.12,24.2844]
[1719583424819,41.88983203,144.21,144.12,17.3459]
[1719583425037,6.9349,144.2,144.14,6.9375]
[1719583425236,48.82423203,144.21,144.14,17.3433]
[1719583425439,6.9349,144.2,144.15,6.9371]
[1719583425616,6.9354,144.19,144.14,24.2808]
[1719583425941,6.9358,144.18,144.13,6.9381]
[1719583426118,6.9372,144.15,144.1,6.9395]
[1719583426426,6.9368,144.16,144.1,6.9392]
[1719583426618,27.7864,144.17,144.11,6.9389]
[1719583427114,6.9373,144.15,144.1,17.3484]
[1719583427323,20.85,144.17,144.09,6.3535]
[1719583427531,6.9377,144.14,144.09,13.2935]
[1719583427945,20.85,144.17,144.09,6.3535]
[1719583428233,20.85,144.17,144.1,17.3484]
[1719583428430,27.7863,144.17,144.12,6.9385]
[1719583429023,6.9368,144.16,144.11,6.939]
[1719583429249,6.9368,144.16,144.1,24.2879]
[1719583429447,6.4265,144.18,144.08,1.689426]
[1719583429448,20.85,144.15,144.08,1.689426]
[1719583429652,20.85,144.15,144.08,8.629626]
[1719583429819,6.9377,144.14,144.08,8.629626]
[1719583430026,6.9377,144.14,144.09,6.9399]
[1719583430842,6.9382,144.13,144.08,8.629826]
[1719583431039,6.9378,144.14,144.08,8.629826]
[1719583431342,27.7886,144.13,144.08,1.689426]
[1719583431548,20.85,144.15,144.09,17.3499]
[1719583432129,6.9378,144.14,144.09,24.2896]
[1719583432335,27.7868,144.16,144.1,6.9392]
[1719583432541,27.7863,144.17,144.11,1.38751225]
[1719583432828,27.7863,144.17,144.12,6.9386]
[1719583432829,6.9363,144.17,144.12,6.9386]
[1719583433224,6.9363,144.17,144.11,18.73491225]
[1719583433225,6.9358,144.18,144.13,8.3255478]
[1719583433540,6.9358,144.18,144.13,1.3874478]
[1719583433740,27.7862,144.17,144.13,1.3874478]
[1719583433958,20.85,144.17,144.11,17.3474]
[1719583434122,6.9372,144.15,144.1,6.9395]
[1719583434319,6.9378,144.14,144.09,6.94]
[1719583434652,6.9378,144.14,144.08,25.980426]
[1719583435148,27.7873,144.15,144.1,6.9395]
[1719583436638,6.9373,144.15,144.1,6.9395]
[1719583436951,20.85,144.16,144.12,6.9386]
[1719583437254,20.85,144.14,144.08,1.689426]
[1719583437424,20.85,144.14,144.08,8.629626]
[1719583437425,6.9385,144.13,144.08,8.629626]
[1719583437626,27.7878,144.14,144.08,8.629626]
[1719583437825,6.9382,144.13,144.08,1.689426]
[1719583438327,6.9382,144.13,144.08,8.629626]
[1719583438657,20.85,144.14,144.09,17.3495]
[1719583438954,16.5479,144.2,144.11,17.3475]
[1719583439128,20.0,144.19,144.08,1.689426]
[1719583439557,6.9373,144.15,144.1,24.2875]
[1719583440028,27.7868,144.16,144.11,6.9391]
[1719583440547,27.7872,144.15,144.1,24.2874]
[1719583440851,20.85,144.15,144.11,6.9391]
[1719583441359,27.7872,144.15,144.1,24.2875]
[1719583441652,6.9379,144.14,144.09,6.9399]
[1719583441857,27.7874,144.15,144.1,6.9396]
[1719583442568,20.85,144.15,144.11,6.9389]
[1719583442927,6.9363,144.17,144.12,6.9385]
[1719583443135,27.7863,144.17,144.12,6.9385]
[1719583443437,6.9358,144.18,144.13,6.9378]
[1719583443627,20.0,144.19,144.11,17.3472]
[1719583443826,27.787,144.16,144.11,24.2862]
[1719583444145,6.9385,144.13,144.08,25.980426]
[1719583444340,27.789,144.12,144.08,1.689426]
[1719583444533,6.9391,144.11,144.08,1.689426]
[1719583444729,27.7896,144.1,144.08,1.689426]
[1719583445042,47.7901,144.09,144.08,1.689426]
[1719583445249,20.85,144.04,143.99,17.3615]
[1719583445551,6.943,144.03,143.98,6.9453]
[1719583446646,27.793,144.03,143.98,6.9453]
[1719583447759,20.85,144.03,143.99,6.9449]
[1719583448261,27.793,144.03,143.98,6.9453]
[1719583448462,20.85,144.03,143.98,6.9453]
[1719583448762,20.85,144.03,143.99,6.9449]
[1719583449470,20.85,144.03,143.96,17.3652]
[1719583449769,27.7941,144.01,143.96,24.3114]
[1719583449957,27.795,143.99,143.93,6.9473]
[1719583450168,27.795,143.99,143.92,38.2196]
[1719583450169,6.9454,143.98,143.92,38.2196]
[1719583450347,27.7954,143.98,143.92,24.3175]
[1719583450742,27.7954,143.98,143.93,6.9475]
[1719583451360,6.9459,143.97,143.92,24.3178]
[1719583451674,6.9465,143.96,143.92,17.3696]
[1719583451850,20.85,143.97,143.92,24.3177]
[1719583452905,15.6591,144.04,143.9,16.3026]
[1719583452906,27.7944,144.0,143.94,17.368]
[1719583453059,20.85,143.98,143.91,17.3712]
[1719583453389,6.9451,143.99,143.94,6.9471]
[1719583453676,26.944,144.01,143.95,17.3666]
[1719583453855,20.0,144.01,143.95,17.3666]
[1719583454245,20.0,144.02,143.92,17.3701]
[1719583454651,27.795,143.99,143.94,6.947]
[1719583455141,6.9444,144.01,143.96,6.9463]
[1719583455344,6.9434,144.03,143.97,6.9457]
[1719583455560,6.9434,144.03,143.96,17.3655]
[1719583455561,20.85,144.03,143.96,17.3655]
[1719583455761,6.9443,144.01,143.96,24.3118]
[1719583456159,15.6591,144.04,143.96,17.3655]
[1719583456360,6.4693,144.05,143.98,17.3631]
[1719583456570,13.4117,144.05,143.98,17.3631]
[1719583456756,13.4117,144.05,143.99,6.9447]
[1719583456966,6.9426,144.04,144.0,1.38863822]
[1719583457266,6.9434,144.02,143.98,17.3631]
[1719583457469,6.9431,144.03,143.98,24.3084]
[1719583457847,6.9434,144.02,143.98,17.3631]
[1719583458467,6.943,144.03,143.98,24.3084]
[1719583459677,27.3193,144.05,143.95,17.3663]
[1719583459891,6.9451,143.99,143.95,17.3663]
[1719583460397,6.9445,144.0,143.95,24.3131]
[1719583460582,20.85,144.03,143.95,17.3663]
[1719583460881,6.9436,144.02,143.97,6.9458]
[1719583461047,20.0,144.04,143.96,6.9462]
[1719583461048,27.7942,144.01,143.96,6.9462]
[1719583461249,27.7942,144.01,143.95,17.3663]
[1719583461250,6.9449,143.99,143.95,17.3663]
[1719583461455,6.9446,144.0,143.95,24.3131]
[1719583462667,6.9449,143.99,143.95,17.3663]
[1719583462890,27.7944,144.0,143.95,24.3131]
[1719583463259,27.7944,144.0,143.96,6.9463]
[1719583463462,6.9437,144.02,143.97,8.33440509]
[1719583463662,6.9439,144.01,143.97,6.9454]
[1719583463966,6.9446,144.0,143.95,17.3663]